bitfinex/quotes_ETHUSD_20240822
["timestamp","ask_amount","ask_price","bid_price","bid_amount"]
[1724287486320,0.07260423,2638.4,2637.9,3.79088]
[1724287486623,0.07260423,2638.4,2637.8,3.79093]
[1724287486820,3.86279423,2638.4,2637.8,3.79093]
[1724287487172,0.07260423,2638.4,2638.0,3.79061]
[1724287487373,7.97515942,2638.8,2638.2,3.79037]
[1724287487568,4.18546942,2638.8,2638.2,3.79037]
[1724287487772,0.07020708,2638.7,2638.2,3.79037]
[1724287488513,0.07020708,2638.7,2638.2,4.794378]
[1724287490181,3.85999708,2638.7,2638.1,3.79057]
[1724287493460,3.79012,2638.5,2637.8,3.79093]
[1724287493664,3.79012,2638.5,2637.9,3.0]
[1724287493816,0.06969101,2638.4,2637.9,3.0]
[1724287494178,0.39589058,2638.4,2637.9,3.0]
[1724287494459,0.06955301,2638.3,2637.9,3.0]
[1724287494615,0.06955301,2638.3,2637.9,6.79087]
[1724287495471,0.06955301,2638.3,2638.0,3.79067]
[1724287495756,0.06955301,2638.3,2638.0,3.79066]
[1724287497114,0.06955301,2638.3,2638.0,7.58132]
[1724287498963,0.06955301,2638.3,2638.1,3.79052]
[1724287499164,0.06955301,2638.3,2638.2,3.79046]
[1724287499369,0.06955301,2638.3,2638.2,4.782242]
[1724287500625,0.06955301,2638.3,2638.2,8.572702]
[1724287500843,2.4988,2638.8,2637.9,4.301959]
[1724287501040,2.89468478,2638.4,2637.8,6.79102]
[1724287501368,0.06988951,2638.3,2637.8,6.79102]
[1724287501744,0.06988951,2638.3,2637.5,3.79139]
[1724287501745,6.10939,2638.1,2637.5,3.79139]
[1724287502084,0.06723471,2638.0,2637.5,3.79138]
[1724287502386,3.85800471,2638.0,2637.3,3.79167]
[1724287502569,4.85472918,2638.0,2637.3,3.79167]
[1724287502775,4.85472918,2638.0,2637.4,3.79156]
[1724287502954,8.64556918,2638.0,2637.3,3.79167]
[1724287503134,4.85472918,2638.0,2637.3,7.58334]
[1724287503343,0.71734292,2637.9,2637.3,7.58334]
[1724287503667,0.06672626,2637.8,2637.4,3.79158]
[1724287504039,0.06672626,2637.8,2637.5,3.79145]
[1724287504239,4.78749447,2638.0,2637.5,3.79145]
[1724287504540,0.06686027,2637.9,2637.5,7.58283]
[1724287504745,0.06686027,2637.9,2637.6,3.7913]
[1724287504946,0.06686027,2637.9,2637.5,3.79138]
[1724287505175,2.3187,2638.1,2637.5,4.170518]
[1724287505642,0.06665213,2638.0,2637.5,4.170518]
[1724287505892,0.06665213,2638.0,2637.7,3.79114]
[1724287506063,0.06665213,2638.0,2637.9,3.79089]
[1724287506387,0.06665213,2638.0,2637.9,4.78031]
[1724287506586,2.8754924,2638.4,2637.8,3.79101]
[1724287506986,0.06698557,2638.3,2637.8,7.58202]
[1724287507346,0.06698557,2638.3,2637.9,3.79089]
[1724287507545,0.06698557,2638.3,2637.8,3.79101]
[1724287507546,0.06698557,2638.3,2637.8,7.58186]
[1724287507868,0.06698557,2638.3,2637.8,3.79091]
[1724287508195,0.06698557,2638.3,2638.0,3.79073]
[1724287509685,0.06698557,2638.3,2637.8,3.79091]
[1724287509892,0.06698557,2638.3,2637.9,3.79088]
[1724287511289,0.06698557,2638.3,2638.0,3.79069]
[1724287513014,0.06698557,2638.3,2638.0,3.79065]
[1724287513308,0.06698557,2638.3,2638.2,3.79046]
[1724287513772,0.39586941,2638.8,2638.5,3.79001]
[1724287513981,0.39586941,2638.8,2638.6,3.78988]
[1724287514157,0.06285686,2638.7,2638.6,3.78988]
[1724287514343,0.39586941,2638.8,2638.7,3.78974]
[1724287514774,0.45918172,2638.8,2638.7,3.78974]
[1724287515160,2.3701,2639.6,2638.7,9.10294]
[1724287515462,0.395803,2639.5,2639.2,3.78896]
[1724287515894,0.395803,2639.5,2639.0,7.57846]
[1724287516073,0.395803,2639.5,2639.0,7.57843]
[1724287516286,0.395803,2639.5,2639.1,4.546963]
[1724287517220,0.395803,2639.5,2639.2,3.78901]
[1724287517423,0.395803,2639.5,2639.3,3.78887]
[1724287517929,0.06226593,2639.4,2639.2,3.78891]
[1724287518225,0.395803,2639.5,2639.2,3.78891]
[1724287518427,0.395803,2639.5,2639.3,3.78887]
[1724287518717,0.0623162,2639.4,2639.3,3.78887]
[1724287518904,0.0623162,2639.4,2639.2,4.30068188]
[1724287519109,0.395803,2639.5,2639.2,4.30068188]
[1724287519337,0.06225679,2639.3,2639.2,4.30068188]
[1724287519623,0.395803,2639.5,2639.2,4.30068188]
[1724287519804,0.06211803,2639.3,2639.2,3.78891]
[1724287520004,0.395803,2639.5,2639.2,3.78891]
[1724287520537,0.06239066,2639.4,2639.2,3.78891]
[1724287523028,0.06239066,2639.4,2639.3,3.78888]
[1724287523209,0.06239066,2639.4,2639.3,7.57776]
[1724287523398,0.395803,2639.5,2639.4,3.78873]
[1724287523800,0.45824916,2639.5,2639.4,3.78873]
[1724287525498,0.395803,2639.5,2639.3,4.784236]
[1724287525923,0.06262313,2639.4,2639.3,4.784236]
[1724287526121,0.06262313,2639.4,2639.3,7.784236]
[1724287526305,0.06262313,2639.4,2639.3,3.995356]
[1724287526505,0.06262313,2639.4,2639.2,3.0]
[1724287526822,0.395803,2639.5,2639.2,3.0]
[1724287527392,0.06245425,2639.4,2639.2,3.0]
[1724287528002,0.06245425,2639.4,2639.3,9.93446]
[1724287528206,0.395803,2639.5,2639.4,7.57746]
[1724287528403,0.395803,2639.5,2639.4,9.170876]
[1724287528695,0.45829553,2639.5,2639.4,9.170876]
[1724287529108,0.45829553,2639.5,2639.4,12.959606]
[1724287529109,0.395803,2639.5,2639.4,12.959606]
[1724287529446,2.2747,2640.5,2640.1,3.78773]
[1724287529591,0.39582524,2640.2,2640.1,3.78773]
[1724287529921,0.45688745,2640.2,2640.1,3.78773]
[1724287530241,0.45688745,2640.2,2640.1,7.57546]
[1724287530554,0.39582524,2640.2,2640.1,7.57546]
[1724287531543,0.39582524,2640.2,2639.9,6.14463]
[1724287531763,0.45720233,2640.2,2639.9,4.702343]
[1724287531904,0.39582524,2640.2,2640.1,3.78773]
[1724287534916,0.39582524,2640.2,2640.1,6.04773]
[1724287535449,0.39582524,2640.2,2640.0,3.78787]
[1724287536577,0.39582524,2640.2,2639.9,0.914463]
[1724287536736,0.39582524,2640.2,2639.7,3.0]
[1724287536921,0.39582524,2640.2,2639.7,6.78828]
[1724287539062,0.39582524,2640.2,2639.5,3.78856]
[1724287539063,4.18342524,2640.2,2639.5,3.78856]
[1724287539268,4.18342524,2640.2,2639.6,3.0]
[1724287539455,4.18342524,2640.2,2639.6,6.78843]
[1724287540661,4.18342524,2640.2,2639.6,10.57679]
[1724287540836,0.39582524,2640.2,2639.6,6.78836]
[1724287541038,0.39582524,2640.2,2639.6,6.78835]
[1724287541039,1.77652776,2640.2,2639.6,6.78835]
[1724287541474,5.56413776,2640.2,2639.6,6.78835]
[1724287541836,5.56413776,2640.2,2639.2,3.78895]
[1724287541837,5.854,2640.0,2639.2,3.78895]
[1724287542120,9.64195,2640.0,2639.4,3.78869]
[1724287542325,9.64195,2640.0,2639.4,7.57734]
[1724287542521,0.06052204,2639.9,2639.4,7.57734]
[1724287542841,0.06052204,2639.9,2639.4,4.546384]
[1724287543155,0.06052204,2639.9,2639.4,3.78865]
[1724287543872,9.64195,2640.0,2639.4,3.78865]
[1724287544741,9.64195,2640.0,2639.2,3.78894]
[1724287544742,2.367,2640.0,2639.6,3.78843]
[1724287545069,4.18305081,2640.2,2639.6,3.78843]
[1724287545070,0.45600136,2639.9,2639.6,3.78843]
[1724287545387,0.45600136,2639.9,2639.6,7.57675]
[1724287545520,0.45600136,2639.9,2639.6,8.06703383]
[1724287545870,0.45600136,2639.9,2639.7,3.7883]
[1724287547375,0.45600136,2639.9,2639.6,0.49028383]
[1724287547574,0.45600136,2639.9,2639.6,3.78837]
[1724287548867,0.45600136,2639.9,2639.6,7.57674]
[1724287549674,0.45600136,2639.9,2639.6,3.78837]
[1724287549875,0.45600136,2639.9,2639.6,3.78836]
[1724287551564,0.45600136,2639.9,2639.6,7.57673]
[1724287551870,0.45600136,2639.9,2639.6,3.78836]
[1724287552201,0.45600136,2639.9,2639.4,3.78869]
[1724287552355,0.45600136,2639.9,2639.4,3.78866]
[1724287552551,2.76530136,2639.9,2639.4,7.57731]
[1724287553800,2.76530136,2639.9,2639.5,3.78856]
[1724287554445,2.76530136,2639.9,2639.4,3.78865]
[1724287554744,2.76530136,2639.9,2639.5,3.78855]
[1724287555450,2.76530136,2639.9,2639.4,3.78865]
[1724287555647,2.76530136,2639.9,2639.4,7.5773]
[1724287555938,2.76530136,2639.9,2639.5,3.78856]
[1724287557041,2.76530136,2639.9,2639.4,3.78865]
[1724287557405,2.76530136,2639.9,2639.3,7.49]
[1724287557406,2.4808,2639.6,2639.3,7.49]
[1724287557611,2.4808,2639.6,2639.2,19.44]
[1724287557809,0.05991932,2639.5,2639.2,19.44]
[1724287558749,0.05991932,2639.5,2638.9,7.49]
[1724287558932,2.4808,2639.3,2638.9,7.49]
[1724287559399,0.05968953,2639.2,2638.9,7.49]
[1724287559845,2.4808,2639.3,2638.9,7.49]
[1724287560054,0.05961594,2639.1,2638.9,7.49]
[1724287560344,0.0595514,2639.0,2638.9,11.27944]
[1724287560552,0.0595514,2639.0,2638.9,7.72188067]
[1724287560698,0.39583664,2639.3,2639.1,3.78915]
[1724287560898,0.05990633,2639.2,2639.1,3.78915]
[1724287561146,0.39583664,2639.3,2639.1,4.94025307]
[1724287561438,0.05992946,2639.2,2639.1,4.94025307]
[1724287561843,0.39583664,2639.3,2639.1,4.94025307]
[1724287562065,0.05992946,2639.2,2639.1,3.78915]
[1724287562219,0.39583664,2639.3,2639.1,3.78915]
[1724287562412,0.05972128,2639.2,2639.1,3.78915]
[1724287562757,0.39583664,2639.3,2639.1,3.78915]
[1724287562926,0.05972128,2639.2,2639.1,4.94024207]
[1724287563317,0.39583664,2639.3,2639.1,4.94024207]
[1724287563517,0.05974441,2639.2,2639.1,4.94024207]
[1724287563740,0.05974441,2639.2,2639.1,1.15109207]
[1724287563926,0.39583664,2639.3,2638.9,23.37244067]
[1724287564131,0.05976754,2639.2,2638.9,19.44]
[1724287564528,2.68403664,2639.3,2638.9,23.22945]
[1724287564750,0.05970302,2639.1,2638.9,23.22945]
[1724287565058,6.47299664,2639.3,2638.9,19.44]
[1724287565263,2.2981,2639.2,2638.9,19.44]
[1724287565563,7.27626,2639.1,2638.9,19.44]
[1724287565760,7.27626,2639.1,2638.4,7.49]
[1724287565761,3.487,2639.1,2638.4,7.49]
[1724287565962,3.7896,2638.8,2638.2,3.79037]
[1724287566320,3.487,2638.7,2638.2,3.79037]
[1724287566966,2.4956,2638.6,2638.0,3.79062]
[1724287567350,2.4956,2638.6,2638.1,3.79051]
[1724287567549,0.05891893,2638.5,2638.1,3.79051]
[1724287567731,0.05891893,2638.5,2638.1,4.73255244]
[1724287569254,0.05891893,2638.5,2638.1,3.79051]
[1724287570044,0.05891893,2638.5,2638.0,3.79062]
[1724287570887,0.05891893,2638.5,2637.2,4.76568149]
[1724287570888,2.4513,2638.1,2637.4,33.19655]
[1724287571064,2.4513,2638.1,2637.4,15.07304]
[1724287571240,0.0580984,2638.0,2637.6,3.79121]
[1724287572038,0.0580984,2638.0,2637.5,3.79135]
[1724287573818,0.0580984,2638.0,2637.7,3.79116]
[1724287574222,2.4513,2638.1,2637.7,3.79116]
[1724287575021,2.4513,2638.1,2637.4,11.28154]
[1724287575022,6.24193,2638.1,2637.4,11.28154]
[1724287575218,6.48706,2638.1,2637.4,11.28154]
[1724287575372,0.05786979,2638.0,2637.5,3.79137]
[1724287575573,0.05786979,2638.0,2637.4,11.28154]
[1724287575574,0.45375967,2638.0,2637.6,3.79123]
[1724287576127,0.45375967,2638.0,2637.4,11.28154]
[1724287576128,0.45375967,2638.0,2637.4,15.07304]
[1724287576273,0.45375967,2638.0,2637.5,3.79143]
[1724287576479,0.45375967,2638.0,2637.6,3.79132]
[1724287577331,1.49653364,2638.0,2637.4,15.073]
[1724287577635,1.49653364,2638.0,2637.5,3.79143]
[1724287577928,0.45375967,2638.0,2637.6,3.7913]
[1724287578427,0.45375967,2638.0,2637.6,7.5826]
[1724287578627,0.45375967,2638.0,2637.6,3.7913]
[1724287578828,0.45375967,2638.0,2637.7,3.79108]
[1724287579032,0.45375967,2638.0,2637.9,3.79089]
[1724287579386,0.45375967,2638.0,2637.8,7.58206]
[1724287579604,0.45375967,2638.0,2637.9,3.79089]
[1724287580958,0.45375967,2638.0,2637.8,3.79103]
[1724287581658,0.45375967,2638.0,2637.8,7.58198]
[1724287581812,0.45375967,2638.0,2637.8,3.79095]
[1724287582156,0.45375967,2638.0,2637.9,3.79089]
[1724287582957,0.45375967,2638.0,2637.8,8.0367988]
[1724287583119,0.45375967,2638.0,2637.8,4.2458588]
[1724287583452,0.45375967,2638.0,2637.8,3.79093]
[1724287584593,0.45375967,2638.0,2637.5,2.4395]
[1724287584594,0.45375967,2638.0,2637.5,3.79145]
[1724287584723,0.45375967,2638.0,2637.6,3.0]
[1724287585442,0.45375967,2638.0,2637.6,6.79132]
[1724287585824,0.45375967,2638.0,2637.6,3.0]
[1724287586050,0.45375967,2638.0,2637.4,2.391]
[1724287586051,0.45375967,2638.0,2637.9,3.79089]
[1724287587831,0.45375967,2638.0,2637.4,6.79158]
[1724287587832,2.70705967,2638.0,2637.4,3.79158]
[1724287588032,2.70705967,2638.0,2637.4,3.79151]
[1724287588256,6.49781967,2638.0,2637.4,3.79151]
[1724287588573,5.16844597,2637.9,2637.4,3.79151]
[1724287588742,2.2653,2637.8,2637.1,23.23197]
[1724287589070,3.79125,2637.7,2637.1,19.44]
[1724287589243,3.79133,2637.6,2637.1,19.44]
[1724287589650,0.05670923,2637.5,2637.1,23.23203]
[1724287589828,0.05670923,2637.5,2637.1,3.79203]
[1724287590228,3.79125,2637.7,2637.1,3.79203]
[1724287590427,0.05666774,2637.4,2637.1,3.79203]
[1724287590645,0.05666774,2637.4,2637.0,3.7921]
[1724287590646,3.79125,2637.7,2637.2,3.79188]
[1724287590863,0.05657996,2637.3,2637.2,3.79188]
[1724287591172,6.05678,2637.5,2636.9,3.79232]
[1724287591478,6.05717,2637.3,2636.6,3.79262]
[1724287591630,2.2653,2637.3,2636.9,3.79231]
[1724287591835,0.0561407,2637.2,2636.8,3.79236]
[1724287592266,2.2653,2637.3,2636.8,3.79236]
[1724287592432,0.05607202,2637.1,2636.9,3.79231]
[1724287592773,2.2653,2637.3,2636.9,3.79231]
[1724287592774,0.05615982,2637.2,2636.9,3.79231]
[1724287592977,0.05597512,2637.0,2636.9,3.79231]
[1724287593282,2.2653,2637.3,2636.9,3.79231]
[1724287593483,0.05599827,2637.0,2636.8,7.58475]
[1724287593781,2.2653,2637.3,2636.9,3.79232]
[1724287595334,2.2653,2637.3,2636.6,3.79264]
[1724287595335,3.7919,2637.2,2636.6,3.79264]
[1724287595662,2.2653,2637.3,2636.7,3.79253]
[1724287595922,3.598858,2637.3,2636.7,3.79253]
[1724287596117,7.390658,2637.3,2636.7,3.79253]
[1724287597096,6.22994,2637.1,2636.5,6.7928]
[1724287597296,2.4379,2637.1,2636.6,3.79267]
[1724287597637,2.4379,2637.1,2636.7,3.79256]
[1724287598400,2.4379,2637.1,2636.6,3.79267]
[1724287598820,2.4379,2637.1,2636.6,3.79266]
[1724287599028,2.4379,2637.1,2636.6,7.58532]
[1724287599598,2.4379,2637.1,2636.6,7.58533]
[1724287600005,2.4379,2637.1,2636.6,3.79266]
[1724287600205,2.4379,2637.1,2636.6,7.58532]
[1724287600448,2.4379,2637.1,2636.6,7.58534]
[1724287600646,2.4379,2637.1,2636.4,11.28292]
[1724287600647,3.79227,2637.0,2636.4,11.28292]
[1724287602018,7.58088,2637.1,2636.4,11.28292]
[1724287602219,7.27985,2636.6,2636.1,0.11694952]
[1724287602749,2.4982,2636.4,2636.1,0.11694952]
[1724287602907,7.27977,2636.6,2636.1,0.11694952]
[1724287603105,3.79253,2636.8,2636.1,0.11694952]
[1724287603106,2.4982,2636.7,2636.1,0.11694952]
[1724287603315,2.4982,2636.7,2636.2,3.79324]
[1724287604656,9.5929,2636.9,2636.3,3.7931]
[1724287604959,3.79249,2636.8,2636.2,3.79324]
[1724287605365,5.8005,2636.9,2636.4,3.79304]
[1724287605523,0.0547818,2636.7,2636.3,2.4954]
[1724287605880,3.79248,2636.8,2636.1,0.11694952]
[1724287606047,2.3135,2636.5,2636.1,0.11694952]
[1724287606375,3.84763641,2636.4,2636.1,0.11694952]
[1724287606562,3.79324,2636.3,2636.1,0.11694952]
[1724287606740,3.84747014,2636.3,2636.1,0.11694952]
[1724287607177,0.05423014,2636.3,2636.1,0.11694952]
[1724287607340,6.1065,2636.5,2636.1,0.11694952]
[1724287607874,2.3135,2636.5,2636.1,0.11694952]
[1724287608058,0.05417085,2636.4,2636.1,0.11694952]
[1724287609472,3.79327,2636.3,2636.1,0.11694952]
[1724287609836,3.84740971,2636.2,2636.1,0.11694952]
[1724287610072,0.05407971,2636.2,2636.1,0.11694952]
[1724287610435,3.79327,2636.3,2636.1,0.11694952]
[1724287610630,0.05410287,2636.2,2636.1,0.11694952]
[1724287610835,6.10649,2636.5,2636.1,0.11694952]
[1724287611096,0.05412603,2636.2,2636.1,0.11694952]
[1724287611330,6.10649,2636.5,2636.1,0.11694952]
[1724287611521,3.88306265,2636.6,2636.1,0.11694952]
[1724287611522,0.05414112,2636.2,2636.1,2.40904952]
[1724287611706,7.67584265,2636.6,2636.1,0.11694952]
[1724287611896,0.05409887,2636.2,2636.1,0.11694952]
[1724287612434,1.14684627,2636.5,2636.1,0.11694952]
[1724287612736,0.05389043,2636.2,2636.1,0.11694952]
[1724287612933,0.05391359,2636.2,2636.1,0.11694952]
[1724287613690,7.67584265,2636.6,2636.1,0.11694952]
[1724287613892,0.05391359,2636.2,2636.1,0.11694952]
[1724287614088,7.67584265,2636.6,2636.1,0.11694952]
[1724287614338,0.05395991,2636.2,2636.1,0.11694952]
[1724287614538,7.67584265,2636.6,2636.1,0.11694952]
[1724287614747,0.05398411,2636.2,2636.1,0.11694952]
[1724287614944,0.05400727,2636.2,2636.1,0.11694952]
[1724287615154,7.67584265,2636.6,2636.1,0.11694952]
[1724287615452,0.05403043,2636.2,2636.1,0.11694952]
[1724287615603,7.67584265,2636.6,2636.1,0.11694952]
[1724287615969,0.05405359,2636.2,2636.1,0.11694952]
[1724287616255,3.8472603,2636.5,2636.1,0.11694952]
[1724287616457,0.05407675,2636.2,2636.1,0.11694952]
[1724287616608,4.93976627,2636.5,2636.1,0.11694952]
[1724287616809,0.05405765,2636.2,2636.1,0.11694952]
[1724287617008,4.93976627,2636.5,2636.1,0.11694952]
[1724287617275,0.05408081,2636.2,2636.1,0.11694952]
[1724287617554,0.05404259,2636.2,2636.1,0.11694952]
[1724287617710,8.73275627,2636.5,2636.1,0.11694952]
[1724287617902,1.31582039,2636.4,2636.1,0.11694952]
[1724287621360,0.39609996,2636.3,2636.1,0.11694952]
[1724287621512,0.05397015,2636.2,2636.1,0.11694952]
[1724287621714,7.64063015,2636.2,2636.1,0.11694952]
[1724287621948,7.58666,2636.2,2636.1,0.11694952]
[1724287622152,8.91374525,2636.2,2636.1,0.11694952]
[1724287623161,5.12041525,2636.2,2636.1,0.11694952]
[1724287623678,0.05395106,2636.2,2636.1,2.42614952]
[1724287624115,0.39609996,2636.3,2636.1,2.42614952]
[1724287624510,0.05373541,2636.2,2636.1,2.42614952]
[1724287624934,0.05378174,2636.2,2636.1,0.11694952]
[1724287625150,6.55370591,2636.2,2636.1,0.11694952]
[1724287625365,6.49992417,2636.2,2636.1,0.11694952]
[1724287625544,6.55331102,2636.2,2636.1,0.11694952]
[1724287625910,0.47768102,2636.2,2636.1,0.11694952]
[1724287627272,0.05338685,2636.2,2636.1,0.11694952]
[1724287627477,0.05338685,2636.2,2636.1,2.50274952]
[1724287627772,0.05424651,2636.2,2636.1,2.50274952]
[1724287627973,0.39609996,2636.3,2636.1,2.50274952]
[1724287628275,0.05431298,2636.2,2636.1,2.50274952]
[1724287628483,0.05431298,2636.2,2636.1,3.13238347]
[1724287628629,0.39609996,2636.3,2636.1,3.13238347]
[1724287628828,0.05459792,2636.2,2636.1,3.13238347]
[1724287629151,0.39609996,2636.3,2636.1,3.13238347]
[1724287629329,0.39609996,2636.3,2636.1,2.50274952]
[1724287629529,0.05443796,2636.2,2636.1,2.50274952]
[1724287629962,0.05446112,2636.2,2636.1,6.29620952]
[1724287630306,0.39609996,2636.3,2636.1,2.50274952]
[1724287630507,0.05465106,2636.2,2636.1,2.50274952]
[1724287630708,0.05465106,2636.2,2636.1,3.51172847]
[1724287631011,0.05471458,2636.2,2636.1,3.51172847]
[1724287631165,0.39609996,2636.3,2636.1,3.51172847]
[1724287631510,0.05473773,2636.2,2636.1,3.51172847]
[1724287631887,0.39609996,2636.3,2636.1,3.51172847]
[1724287632075,0.05495078,2636.2,2636.1,3.51172847]
[1724287632578,0.39609996,2636.3,2636.1,3.51172847]
[1724287632781,0.05497393,2636.2,2636.1,3.51172847]
[1724287632981,0.05497393,2636.2,2636.1,0.11694952]
[1724287633169,0.39609996,2636.3,2636.1,0.11694952]
[1724287633367,0.05507673,2636.2,2636.1,0.11694952]
[1724287633708,0.39609996,2636.3,2636.1,0.11694952]
[1724287634010,0.05507673,2636.2,2636.1,0.11694952]
[1724287634616,0.39609996,2636.3,2636.1,0.11694952]
[1724287634767,1.19430796,2636.3,2636.1,0.11694952]
[1724287634966,0.39609996,2636.3,2636.1,0.11694952]
[1724287635609,0.0548986,2636.2,2636.1,0.11694952]
[1724287636017,0.39609996,2636.3,2636.1,0.11694952]
[1724287636311,0.05494491,2636.2,2636.1,0.11694952]
[1724287636632,0.39609996,2636.3,2636.1,0.11694952]
[1724287636772,0.05496806,2636.2,2636.1,0.11694952]
[1724287636974,0.81501496,2636.3,2636.1,0.11694952]
[1724287637177,0.05496806,2636.2,2636.1,0.11694952]
[1724287637435,0.81501496,2636.3,2636.1,0.11694952]
[1724287637731,0.05499121,2636.2,2636.1,0.11694952]
[1724287638065,3.15301496,2636.3,2636.1,0.11694952]
[1724287638270,0.74964401,2636.2,2636.1,0.11694952]
[1724287638713,4.54297401,2636.2,2636.1,0.11694952]
[1724287640124,0.74964401,2636.2,2636.1,0.11694952]
[1724287640338,0.05503751,2636.2,2636.1,0.11694952]
[1724287640668,0.39609996,2636.3,2636.1,0.11694952]
[1724287640881,0.05472612,2636.2,2636.1,0.11694952]
[1724287641221,0.39609996,2636.3,2636.1,0.11694952]
[1724287641390,0.05470703,2636.2,2636.1,0.11694952]
[1724287641787,0.39609996,2636.3,2636.1,0.11694952]
[1724287641992,0.05466479,2636.2,2636.1,0.11694952]
[1724287642394,0.39609996,2636.3,2636.1,0.11694952]
[1724287642617,0.05473234,2636.2,2636.1,0.11694952]
[1724287643118,0.39609996,2636.3,2636.1,0.11694952]
[1724287643326,0.05488221,2636.2,2636.1,0.11694952]
[1724287643705,0.39609996,2636.3,2636.1,0.11694952]
[1724287644020,0.05488221,2636.2,2636.1,0.11694952]
[1724287644396,0.39609996,2636.3,2636.1,0.11694952]
[1724287644702,0.05492852,2636.2,2636.1,0.11694952]
[1724287645218,0.05495167,2636.2,2636.1,0.11694952]
[1724287645391,6.99572996,2636.3,2636.1,0.11694952]
[1724287645392,4.18932996,2636.3,2636.1,0.11694952]
[1724287645589,4.18932996,2636.3,2636.1,2.44154952]
[1724287645590,0.05497482,2636.2,2636.1,2.44154952]
[1724287646138,0.39609996,2636.3,2636.1,2.44154952]
[1724287646328,0.0550141,2636.2,2636.1,3.06507047]
[1724287646682,0.39609996,2636.3,2636.1,3.06507047]
[1724287646877,0.05503725,2636.2,2636.1,2.44154952]
[1724287647278,0.39609996,2636.3,2636.1,2.44154952]
[1724287647499,0.05485204,2636.2,2636.1,2.44154952]
[1724287647926,0.39609996,2636.3,2636.1,2.44154952]
[1724287648222,0.39609996,2636.3,2636.1,6.23492952]
[1724287648223,0.0548752,2636.2,2636.1,6.23492952]
[1724287648519,0.0548752,2636.2,2636.1,7.23778247]
[1724287648750,0.39609996,2636.3,2636.1,7.23778247]
[1724287649159,0.05494573,2636.2,2636.1,2.44154952]
[1724287649522,0.39609996,2636.3,2636.1,2.44154952]
[1724287649727,0.05494573,2636.2,2636.1,2.44154952]
[1724287650036,0.39609996,2636.3,2636.1,2.44154952]
[1724287650240,0.0550001,2636.2,2636.1,0.11694952]
[1724287650615,4.18929996,2636.3,2636.1,0.11694952]
[1724287650810,0.4739301,2636.2,2636.1,0.11694952]
[1724287652838,0.0550001,2636.2,2636.1,0.11694952]
[1724287653251,0.39609996,2636.3,2636.1,0.11694952]
[1724287653572,0.05491156,2636.2,2636.1,0.11694952]
[1724287653874,0.39609996,2636.3,2636.1,0.11694952]
[1724287654076,0.05493471,2636.2,2636.1,0.11694952]
[1724287654478,0.39609996,2636.3,2636.1,0.11694952]
[1724287654628,0.05495786,2636.2,2636.1,0.11694952]
[1724287655076,0.39609996,2636.3,2636.1,0.11694952]
[1724287655276,0.05500416,2636.2,2636.1,0.11694952]
[1724287655678,0.39609996,2636.3,2636.1,0.11694952]
[1724287655980,0.05500416,2636.2,2636.1,0.11694952]
[1724287656129,0.39609996,2636.3,2636.1,0.11694952]
[1724287656479,0.0548421,2636.2,2636.1,0.11694952]
[1724287657073,0.39609996,2636.3,2636.1,0.11694952]
[1724287657223,0.05486526,2636.2,2636.1,0.11694952]
[1724287657660,0.39609996,2636.3,2636.1,0.11694952]
[1724287657839,0.05486526,2636.2,2636.1,0.11694952]
[1724287658274,0.42441952,2636.2,2636.1,0.11694952]
[1724287658478,0.47933108,2636.2,2636.1,0.11694952]
[1724287658770,0.05491156,2636.2,2636.1,0.11694952]
[1724287659155,4.18932996,2636.3,2636.1,0.11694952]
[1724287659327,0.0549296,2636.2,2636.1,0.11694952]
[1724287659528,3.8482596,2636.2,2636.1,0.11694952]
[1724287659781,0.85868856,2636.2,2636.1,0.11694952]
[1724287660084,10.85314856,2636.2,2636.1,0.11694952]
[1724287663081,4.65201856,2636.2,2636.1,0.11694952]
[1724287663227,3.8482596,2636.2,2636.1,0.11694952]
[1724287672019,7.6415896,2636.2,2636.1,0.11694952]
[1724287674580,3.8482596,2636.2,2636.1,0.11694952]
[1724287676512,9.0985896,2636.2,2636.1,0.11694952]
[1724287677904,15.7891196,2636.2,2636.1,0.11694952]
[1724287678217,17.3889586,2636.2,2636.1,0.11694952]
[1724287678719,21.1822886,2636.2,2636.1,0.11694952]
[1724287679095,17.3889586,2636.2,2636.1,0.11694952]
[1724287679633,15.9319586,2636.2,2636.1,0.11694952]
[1724287679918,9.0985896,2636.2,2636.1,0.11694952]
[1724287680873,5.3052596,2636.2,2636.1,0.11694952]
[1724287681073,9.0985896,2636.2,2636.1,0.11694952]
[1724287681286,5.3052596,2636.2,2636.1,0.11694952]
[1724287682795,0.0549296,2636.2,2636.1,0.11694952]
[1724287683009,5.3052596,2636.2,2636.1,0.11694952]
[1724287683171,5.30015184,2636.2,2636.1,0.11694952]
[1724287684096,10.04243902,2636.2,2636.1,0.11694952]
[1724287684531,10.43777575,2636.2,2636.1,0.11694952]
[1724287688377,10.04243902,2636.2,2636.1,0.11694952]
[1724287691247,0.04982184,2636.2,2636.1,0.11694952]
[1724287691665,1.85309996,2636.3,2636.1,0.11694952]
[1724287691845,3.84333219,2636.2,2636.1,0.11694952]
[1724287696206,0.05000219,2636.2,2636.1,0.11694952]
[1724287696403,5.64628996,2636.3,2636.1,0.11694952]
[1724287696575,5.64628996,2636.3,2636.2,2.3784]
[1724287697680,0.39609996,2636.3,2636.2,2.62793495]
[1724287697874,0.39609996,2636.3,2636.2,10.24439495]
[1724287698079,0.39439401,2637.5,2636.2,8.95527981]
[1724287698400,3.79022,2638.4,2636.2,8.95527981]
[1724287698401,3.79111,2637.8,2637.1,6.20013]
[1724287698710,0.3960253,2637.4,2637.2,6.20007]
[1724287698928,3.79105,2637.8,2637.2,2.4082]
[1724287699316,0.39604518,2637.4,2637.2,2.4082]
[1724287699479,3.79105,2637.8,2637.2,2.4082]
[1724287699684,0.39602623,2637.4,2637.2,2.4082]
[1724287699884,3.79133,2637.6,2637.2,2.4082]
[1724287700082,7.58221,2637.8,2637.2,2.4082]
[1724287700395,3.79105,2637.8,2637.2,2.4082]
[1724287700605,3.79081,2638.0,2637.3,6.21376]
[1724287700805,3.79081,2638.0,2637.5,2.4221]
[1724287700806,0.39602919,2637.7,2637.5,2.4221]
[1724287701043,3.79175,2637.3,2636.6,3.0]
[1724287701332,0.39602919,2637.7,2636.9,2.4221]
[1724287701333,3.79203,2637.2,2636.9,2.4221]
[1724287701482,3.79166,2637.4,2636.5,2.4221]
[1724287701483,3.79256,2636.8,2636.5,2.4221]
[1724287701924,3.493,2637.2,2636.5,2.4221]
[1724287701925,3.79222,2637.0,2636.5,2.4221]